bitfinex/quotes_BTCUSD_20250218
["timestamp","ask_amount","ask_price","bid_price","bid_amount"]
[1739858829972,2.1269336,95626.0,95625.0,12.96917244]
[1739858830209,2.10751352,95626.0,95625.0,12.96917244]
[1739858830410,2.11251352,95626.0,95625.0,12.96917244]
[1739858830614,2.11251352,95626.0,95625.0,13.04477244]
[1739858830615,0.03790987,95626.0,95625.0,13.04477244]
[1739858830898,0.02990987,95626.0,95625.0,13.04477244]
[1739858831088,0.03490987,95626.0,95625.0,13.04477244]
[1739858831295,0.02919985,95626.0,95625.0,13.04477244]
[1739858831524,0.02519985,95626.0,95625.0,13.04477244]
[1739858832273,0.02019985,95626.0,95625.0,13.04477244]
[1739858832674,0.17706085,95626.0,95625.0,13.04477244]
[1739858832882,0.07973324,95626.0,95625.0,13.04477244]
[1739858833095,0.2795645,95626.0,95625.0,12.96917244]
[1739858833295,0.29612456,95626.0,95625.0,12.96917244]
[1739858833499,5.83871271,95626.0,95625.0,12.96917244]
[1739858833741,5.84944271,95626.0,95625.0,12.96917244]
[1739858833982,5.66463736,95626.0,95625.0,12.96917244]
[1739858834173,5.66563736,95626.0,95625.0,12.96917244]
[1739858834395,5.82063736,95626.0,95625.0,12.96917244]
[1739858834635,5.83499426,95626.0,95625.0,12.96917244]
[1739858835051,5.83899426,95626.0,95625.0,12.96917244]
[1739858835257,5.83499426,95626.0,95625.0,12.96917244]
[1739858835455,5.83399426,95626.0,95625.0,12.96917244]
[1739858835631,5.77103726,95626.0,95625.0,12.97017244]
[1739858835941,5.69928803,95626.0,95625.0,12.97017244]
[1739858836070,5.41687676,95626.0,95625.0,12.96917244]
[1739858836279,5.21411676,95626.0,95625.0,12.96917244]
[1739858836484,5.21511676,95626.0,95625.0,12.96917244]
[1739858836898,5.37197776,95626.0,95625.0,12.96917244]
[1739858837140,5.40297198,95626.0,95625.0,12.96917244]
[1739858837355,5.49285182,95626.0,95625.0,12.96917244]
[1739858838128,5.40297198,95626.0,95625.0,12.96917244]
[1739858840216,5.41847592,95626.0,95625.0,12.96917244]
[1739858840420,5.41847592,95626.0,95625.0,12.9455925]
[1739858841195,5.41947592,95626.0,95625.0,12.9455925]
[1739858841392,5.41947592,95626.0,95625.0,12.93358137]
[1739858841611,5.52197957,95626.0,95625.0,12.92551689]
[1739858842035,5.52097957,95626.0,95625.0,12.92551689]
[1739858842276,5.53407972,95626.0,95625.0,12.92551689]
[1739858842446,5.53607972,95626.0,95625.0,12.92551689]
[1739858842656,5.53607972,95626.0,95625.0,12.92544689]
[1739858842836,5.53407972,95626.0,95625.0,12.92544689]
[1739858843406,5.56138906,95626.0,95625.0,12.8833869]
[1739858843602,5.56734906,95626.0,95625.0,12.8833869]
[1739858843942,5.56134906,95626.0,95625.0,12.8833869]
[1739858844145,5.56734906,95626.0,95625.0,12.8833869]
[1739858844349,5.57769025,95626.0,95625.0,12.8833869]
[1739858844751,5.57769025,95626.0,95625.0,12.7997369]
[1739858844984,6.29769025,95626.0,95625.0,12.7356169]
[1739858845155,6.29769025,95626.0,95625.0,12.73128034]
[1739858845376,6.29769025,95626.0,95625.0,12.62523134]
[1739858845803,6.30373375,95626.0,95625.0,12.62523134]
[1739858846402,6.29073375,95626.0,95625.0,12.62523134]
[1739858846607,6.29073375,95626.0,95625.0,12.56695436]
[1739858846825,6.30373375,95626.0,95625.0,12.56695436]
[1739858847032,6.30373375,95626.0,95625.0,12.56414777]
[1739858847231,2.89201375,95626.0,95625.0,12.56414777]
[1739858847431,7.01162575,95626.0,95625.0,12.51530777]
[1739858847725,7.13932975,95626.0,95625.0,12.51530777]
[1739858847926,7.26582975,95626.0,95625.0,12.21345122]
[1739858848132,7.26582975,95626.0,95625.0,12.00415885]
[1739858848339,7.26582975,95626.0,95625.0,11.99539101]
[1739858848519,5.3241301,95626.0,95625.0,11.97444101]
[1739858849248,5.3171301,95626.0,95625.0,11.97444101]
[1739858849456,5.2370301,95626.0,95625.0,11.97444101]
[1739858849676,5.33953375,95626.0,95625.0,11.97444101]
[1739858850063,5.33253375,95626.0,95625.0,11.97444101]
[1739858850281,5.33953375,95626.0,95625.0,11.97444101]
[1739858850506,5.34653375,95626.0,95625.0,11.97444101]
[1739858850687,5.3334336,95626.0,95625.0,11.97444101]
[1739858850893,5.3334336,95626.0,95625.0,11.93241101]
[1739858851202,5.3264336,95626.0,95625.0,11.93241101]
[1739858851434,5.3334336,95626.0,95625.0,11.93241101]
[1739858851641,5.3264336,95626.0,95625.0,11.93241101]
[1739858852081,5.23092995,95626.0,95625.0,11.93241101]
[1739858852535,5.22392995,95626.0,95625.0,11.93241101]
[1739858852773,5.20054526,95626.0,95625.0,11.93241101]
[1739858853036,5.21454526,95626.0,95625.0,11.93241101]
[1739858853281,5.20754526,95626.0,95625.0,11.93241101]
[1739858853487,5.30304891,95626.0,95625.0,11.93241101]
[1739858853693,5.31704891,95626.0,95625.0,11.93241101]
[1739858854654,5.29704891,95626.0,95625.0,11.93241101]
[1739858854873,5.14914526,95626.0,95625.0,11.93241101]
[1739858855277,5.14914526,95626.0,95625.0,11.93352949]
[1739858855691,5.17587364,95626.0,95625.0,11.93352949]
[1739858855989,5.19587364,95626.0,95625.0,11.89194949]
[1739858856191,5.19587364,95626.0,95625.0,11.83862949]
[1739858856402,5.29837729,95626.0,95625.0,11.83862949]
[1739858856610,5.29137729,95626.0,95625.0,11.83862949]
[1739858856812,5.29137729,95626.0,95625.0,11.81138486]
[1739858857018,5.31147866,95626.0,95625.0,11.81138486]
[1739858857223,5.30447866,95626.0,95625.0,11.81138486]
[1739858857419,5.30447866,95626.0,95625.0,11.80823924]
[1739858857653,5.30113544,95626.0,95625.0,11.80823924]
[1739858857852,2.59978744,95626.0,95625.0,11.80823924]
[1739858858106,6.97487244,95626.0,95625.0,11.80823924]
[1739858858290,7.26810044,95626.0,95625.0,11.80712076]
[1739858858487,2.52276245,95626.0,95625.0,11.80712076]
[1739858858662,1.80966108,95626.0,95625.0,11.80712076]
[1739858858872,1.79566108,95626.0,95625.0,11.80712076]
[1739858859322,1.95966108,95626.0,95625.0,11.80712076]
[1739858859533,2.05516473,95626.0,95625.0,11.80712076]
[1739858859701,2.04816473,95626.0,95625.0,11.79963203]
[1739858859898,2.05516473,95626.0,95625.0,11.79963203]
[1739858860104,2.05516473,95626.0,95625.0,11.69570396]
[1739858860358,2.75516473,95626.0,95625.0,11.54600073]
[1739858860535,2.76216473,95626.0,95625.0,11.54600073]
[1739858860756,2.77516473,95626.0,95625.0,11.49260073]
[1739858860907,3.06665477,95626.0,95625.0,10.44947238]
[1739858861116,2.84830092,95626.0,95625.0,10.18327438]
[1739858861312,2.84130092,95626.0,95625.0,9.63866763]
[1739858861521,3.29730092,95626.0,95625.0,9.35675568]
[1739858861728,3.39970092,95626.0,95625.0,7.15251323]
[1739858861954,3.39970092,95626.0,95625.0,7.0411383]
[1739858862286,3.39970092,95626.0,95625.0,6.94400296]
[1739858862487,3.39270092,95626.0,95625.0,6.73964802]
[1739858862688,3.38331576,95626.0,95625.0,6.64057973]
[1739858862921,2.83148876,95626.0,95625.0,6.0422048]
[1739858863127,2.81748876,95626.0,95625.0,4.71260816]
[1739858863284,1.95061176,95626.0,95625.0,4.53541483]
[1739858863496,1.95761176,95626.0,95625.0,4.08738084]
[1739858863711,1.99751176,95626.0,95625.0,3.37417793]
[1739858863914,2.04053001,95626.0,95625.0,3.04664221]
[1739858864088,3.54753001,95626.0,95625.0,2.85066458]
[1739858864305,3.54753001,95626.0,95625.0,2.41556976]
[1739858864598,3.51083001,95626.0,95625.0,1.14104451]
[1739858864792,3.48091542,95626.0,95625.0,1.06323505]
[1739858864990,3.51082369,95626.0,95625.0,0.89445506]
[1739858865278,3.98258939,95626.0,95625.0,0.59531254]
[1739858865479,3.98258939,95626.0,95625.0,0.51416119]
[1739858865608,3.98258939,95626.0,95625.0,0.40902627]
[1739858865814,3.97558939,95626.0,95625.0,0.39330144]
[1739858866020,3.98548573,95626.0,95625.0,0.29013992]
[1739858866223,3.91934954,95626.0,95625.0,9.2e-07]
[1739858866425,0.4687,95617.0,95616.0,0.00128868]
[1739858866624,6.51451821,95617.0,95616.0,0.00128868]
[1739858867234,6.71451821,95617.0,95616.0,0.00128868]
[1739858867729,6.76486933,95617.0,95616.0,0.00128868]
[1739858868316,6.77454825,95617.0,95616.0,0.00128868]
[1739858868583,6.81124324,95617.0,95616.0,0.00128868]
[1739858868737,7.54584224,95617.0,95616.0,0.00128868]
[1739858869135,7.23464224,95617.0,95616.0,0.00128868]
[1739858869335,6.92340042,95617.0,95616.0,0.00128868]
[1739858869545,6.34762191,95617.0,95616.0,0.00128868]
[1739858869779,5.82897876,95617.0,95616.0,0.00128868]
[1739858869949,5.88419504,95617.0,95616.0,0.00128868]
[1739858870132,5.87719504,95617.0,95616.0,0.00128868]
[1739858870337,5.88570233,95617.0,95616.0,0.00128868]
[1739858870580,5.89270233,95617.0,95616.0,0.00128868]
[1739858870838,6.04970233,95617.0,95616.0,0.00128868]
[1739858871043,6.03570233,95617.0,95616.0,0.00128868]
[1739858871253,6.04270233,95617.0,95616.0,0.00128868]
[1739858871456,6.06270233,95617.0,95616.0,0.00128868]
[1739858872331,6.04270233,95617.0,95616.0,0.00128868]
[1739858872513,0.2,95601.0,95590.0,0.0497]
[1739858872735,5.55317365,95601.0,95590.0,0.0497]
[1739858872935,6.14994806,95601.0,95592.0,0.00111854]
[1739858873075,6.15641906,95601.0,95592.0,0.00111854]
[1739858873277,6.13641906,95601.0,95592.0,0.00111854]
[1739858873807,6.14341906,95601.0,95592.0,0.00111854]
[1739858874100,6.19377018,95601.0,95592.0,0.00111854]
[1739858874516,6.20077018,95601.0,95592.0,0.00111854]
[1739858875070,6.2104491,95601.0,95592.0,0.00111854]
[1739858875280,6.3331526,95601.0,95592.0,0.00111854]
[1739858875672,6.34954273,95601.0,95592.0,0.00111854]
[1739858876405,7.10475901,95601.0,95592.0,0.00111854]
[1739858877024,7.09508009,95601.0,95592.0,0.00111854]
[1739858877435,7.03986381,95601.0,95592.0,0.00111854]
[1739858877881,5.76986409,95601.0,95592.0,0.00111854]
[1739858878084,5.66821609,95601.0,95592.0,0.00111854]
[1739858879346,5.40734451,95601.0,95592.0,0.00111854]
[1739858879570,5.35212823,95601.0,95592.0,0.00111854]
[1739858879784,4.96324223,95601.0,95592.0,0.00111854]
[1739858880599,4.97358159,95601.0,95592.0,0.00111854]
[1739858881034,4.59592359,95601.0,95592.0,0.00111854]
[1739858881239,3.58816494,95601.0,95592.0,0.00111854]
[1739858881499,3.58816494,95601.0,95600.0,0.2567]
[1739858881500,1.51137752,95601.0,95600.0,0.2567]
[1739858881702,0.39883639,95601.0,95600.0,0.2797]
[1739858881909,0.39883639,95601.0,95600.0,0.28081854]
[1739858881910,0.05852474,95601.0,95600.0,0.28081854]
[1739858882064,0.00899318,95601.0,95600.0,0.43772154]
[1739858882266,0.0207631,95637.0,95621.0,0.302569]
[1739858882466,0.0207631,95637.0,95621.0,0.38574248]
[1739858882467,1.47445269,95622.0,95621.0,0.38574248]
[1739858882642,1.60863769,95622.0,95621.0,0.38574248]
[1739858882846,0.8231654,95622.0,95621.0,0.20187348]
[1739858883471,0.8231654,95622.0,95621.0,0.19787348]
[1739858883674,0.5317524,95622.0,95621.0,0.35474248]
[1739858883872,0.09299769,95630.0,95622.0,0.023]
[1739858884071,0.09299769,95630.0,95629.0,0.156856]
[1739858884250,0.09299769,95630.0,95629.0,0.232556]
[1739858884451,0.06129769,95630.0,95629.0,0.25563469]
[1739858884698,8.9219,95639.0,95638.0,0.156841]
[1739858884944,8.1242,95639.0,95638.0,0.156841]
[1739858885119,5.78540287,95639.0,95638.0,0.179841]
[1739858885331,4.98590287,95639.0,95638.0,0.20031017]
[1739858885640,4.75744689,95639.0,95638.0,0.2113705]
[1739858885773,4.74064689,95639.0,95638.0,0.2113705]
[1739858886180,1.68154435,95639.0,95638.0,1.03161382]
[1739858886413,0.1156304,95639.0,95638.0,1.03161382]
[1739858886611,0.0003404,95650.0,95649.0,0.219823]
[1739858886810,0.0003404,95650.0,95649.0,0.2653723]
[1739858887785,0.02,95687.0,95655.0,0.156813]
[1739858888029,0.02,95687.0,95655.0,0.25931665]
[1739858888409,0.02,95687.0,95655.0,0.28231665]
[1739858888609,0.02,95687.0,95655.0,0.30298699]
[1739858888813,0.12054066,95680.0,95655.0,0.30298699]
[1739858889219,0.12054066,95680.0,95655.0,0.30998699]
[1739858889671,0.02,95677.0,95655.0,0.20748334]
[1739858889867,0.0013408,95656.0,95655.0,0.20748334]
[1739858890067,0.0003408,95656.0,95655.0,0.20048334]
[1739858890261,0.0003408,95656.0,95655.0,0.20852848]
[1739858890462,0.0013408,95656.0,95655.0,0.21448334]
[1739858890780,0.0013408,95656.0,95655.0,0.31698699]
[1739858891160,0.0013408,95656.0,95655.0,0.46698699]
[1739858891739,0.0013408,95656.0,95655.0,0.45998699]
[1739858891944,0.0013408,95656.0,95655.0,0.99878699]
[1739858892150,0.0013408,95656.0,95655.0,1.00578699]
[1739858892555,0.0003408,95656.0,95655.0,0.99178699]
[1739858893012,0.0003408,95656.0,95655.0,1.00578699]
[1739858893200,0.0003408,95656.0,95655.0,0.99878699]
[1739858893631,0.0003408,95656.0,95655.0,1.04993451]
[1739858894268,0.0003408,95656.0,95655.0,1.05693451]
[1739858894473,0.0003408,95656.0,95655.0,1.04993451]
[1739858894929,0.0013408,95656.0,95655.0,1.05693451]
[1739858895103,0.0013408,95656.0,95655.0,1.02602262]
[1739858895351,0.0003408,95656.0,95655.0,1.01902262]
[1739858895762,0.0013408,95656.0,95655.0,1.03302262]
[1739858896002,0.0013408,95656.0,95655.0,1.04345835]
[1739858896211,0.0003408,95656.0,95655.0,1.02945835]
[1739858896412,0.0003408,95656.0,95655.0,1.03645835]
[1739858896624,0.0013408,95656.0,95655.0,1.04345835]
[1739858896846,8e-07,95656.0,95655.0,1.04345835]
[1739858897049,8e-07,95656.0,95655.0,1.08209269]
[1739858897232,8e-07,95656.0,95655.0,1.4015222]
[1739858897469,8e-07,95656.0,95655.0,1.38725444]
[1739858897670,8e-07,95656.0,95655.0,1.4085222]
[1739858897876,0.02,95709.0,95656.0,0.173]
[1739858898075,0.02,95709.0,95656.0,0.27654842]
[1739858898289,0.02,95709.0,95656.0,0.27550365]
[1739858899080,0.0013408,95657.0,95656.0,0.31077141]
[1739858899283,0.0013408,95657.0,95656.0,0.31866234]
[1739858899487,0.0013408,95657.0,95656.0,0.29739458]
[1739858899878,0.0013408,95657.0,95656.0,0.31673928]
[1739858900440,0.0013408,95657.0,95656.0,0.29373928]
[1739858901049,0.0013408,95657.0,95656.0,0.14373928]
[1739858901250,0.0003408,95657.0,95656.0,0.13673928]
[1739858901476,0.0003408,95657.0,95656.0,0.03423563]
[1739858901678,0.0013408,95657.0,95656.0,0.04228082]
[1739858901875,0.0013408,95657.0,95656.0,0.05487183]
[1739858902193,0.0003408,95657.0,95656.0,0.14933029]
[1739858902395,0.0003408,95657.0,95656.0,0.15037541]
[1739858902595,0.0013408,95657.0,95656.0,0.17337541]
[1739858903201,0.0013408,95657.0,95656.0,0.05487176]
[1739858903391,0.0013408,95657.0,95656.0,0.05382664]
[1739858903744,0.0013408,95657.0,95656.0,0.04682664]
[1739858903944,0.0013408,95657.0,95656.0,0.05511047]
[1739858904152,0.0003408,95657.0,95656.0,0.04111047]
[1739858904373,0.0013008,95657.0,95656.0,0.04811047]
[1739858904589,0.0013008,95657.0,95656.0,0.0263447]
[1739858905014,0.0013008,95657.0,95650.0,0.15682]
[1739858905015,0.0003008,95657.0,95655.0,0.156812]
[1739858905196,0.00547964,95657.0,95655.0,0.156812]
[1739858905400,0.0013008,95657.0,95656.0,0.007]
[1739858905601,0.0013008,95657.0,95656.0,0.014]
[1739858905824,0.0003008,95657.0,95655.0,0.156812]
[1739858905990,0.0003008,95657.0,95656.0,0.007]
[1739858906531,0.0003008,95657.0,95655.0,0.1569822]
[1739858906676,0.0003008,95657.0,95656.0,0.007]
[1739858907078,0.0013008,95657.0,95656.0,0.014]
[1739858907299,0.00651604,95657.0,95656.0,0.014]
[1739858907471,0.0013008,95657.0,95656.0,0.014]
[1739858907677,0.00550775,95657.0,95656.0,0.007]
[1739858907881,0.0013008,95657.0,95656.0,0.014]
[1739858908090,0.00648236,95657.0,95656.0,0.014]
[1739858908293,0.0013008,95657.0,95656.0,0.014]
[1739858908511,0.0013008,95657.0,95655.0,0.0001702]
[1739858908512,0.19,95656.0,95655.0,0.0001702]
[1739858908713,3.45659564,95656.0,95655.0,0.0001702]
[1739858908923,3.54013966,95656.0,95655.0,0.0001702]
[1739858910202,3.54539941,95656.0,95655.0,0.0001702]
[1739858910421,3.64490306,95656.0,95655.0,0.0001702]
[1739858910599,3.54239941,95656.0,95655.0,0.0001702]
[1739858910814,2.94464841,95656.0,95655.0,0.0001702]
[1739858911395,2.94764841,95656.0,95655.0,0.0001702]
[1739858911599,0.69274542,95656.0,95655.0,0.0001702]
[1739858911823,0.46881542,95656.0,95655.0,0.0001702]
[1739858912050,0.08780377,95656.0,95655.0,0.0001702]
[1739858912248,0.10580377,95656.0,95655.0,0.0001702]
[1739858912451,0.10780377,95656.0,95655.0,0.0001702]
[1739858912953,0.99691577,95656.0,95655.0,0.0001702]
[1739858913306,0.97330277,95656.0,95655.0,0.0001702]
[1739858913515,0.77252077,95656.0,95655.0,0.0001702]
[1739858913738,0.23780377,95656.0,95655.0,0.0011702]
[1739858913892,0.00740377,95656.0,95655.0,0.1579832]
[1739858914092,0.00740377,95656.0,95655.0,0.0031702]
[1739858914304,0.0003008,95657.0,95655.0,0.02265487]
[1739858914504,0.0073321,95656.0,95655.0,0.02265487]
[1739858914948,0.0073321,95656.0,95655.0,0.01965487]
[1739858915326,0.0073321,95656.0,95655.0,0.02265487]
[1739858915856,0.8201651,95656.0,95655.0,0.02265487]
[1739858916067,0.9901651,95656.0,95655.0,0.02265487]
[1739858916249,0.9901651,95656.0,95655.0,0.0031702]
[1739858916598,0.9901651,95656.0,95655.0,0.0011702]
[1739858916805,0.9901651,95656.0,95655.0,0.0021702]
[1739858917021,0.9901651,95656.0,95655.0,0.0031702]
[1739858917226,0.5829671,95656.0,95655.0,0.0031702]
[1739858917448,0.1973321,95656.0,95655.0,0.0011702]
[1739858917655,0.5256001,95656.0,95655.0,0.0031702]
[1739858918192,0.5256001,95656.0,95655.0,0.0011702]
[1739858918400,0.3052331,95656.0,95655.0,0.0011702]
[1739858918609,0.04194846,95656.0,95655.0,0.0011702]
[1739858918819,0.00735708,95656.0,95655.0,0.0001702]
[1739858919016,0.00735708,95656.0,95655.0,0.0011702]
[1739858919396,0.00735708,95656.0,95655.0,0.0001702]
[1739858919651,0.0003008,95657.0,95655.0,0.0001702]
[1739858919652,0.0003008,95657.0,95655.0,0.00121552]
[1739858920020,0.0003008,95657.0,95655.0,0.0011702]
[1739858920221,0.0003008,95657.0,95655.0,0.0021702]
[1739858920536,0.0003008,95657.0,95655.0,0.0001702]
[1739858920903,0.0013008,95657.0,95655.0,0.0061702]
[1739858921314,0.0003008,95657.0,95655.0,0.0001702]
[1739858921717,0.0003008,95657.0,95655.0,0.0051702]
[1739858921940,0.0003008,95657.0,95655.0,0.0101702]
[1739858922793,0.0003008,95657.0,95655.0,0.0051702]
[1739858922998,0.0003008,95657.0,95655.0,0.0081702]
[1739858923375,0.0003008,95657.0,95655.0,0.0031702]
[1739858923579,1.086016,95656.0,95655.0,0.0031702]
[1739858923776,1.086016,95656.0,95655.0,0.0061702]
[1739858924107,1.16106188,95656.0,95655.0,0.0061702]
[1739858924314,1.34016553,95656.0,95655.0,0.0001702]
[1739858924544,1.59266918,95656.0,95655.0,0.0041702]
[1739858925660,1.60904876,95656.0,95655.0,0.0071702]
[1739858926003,1.60904876,95656.0,95655.0,0.0001702]
[1739858926213,1.60904876,95656.0,95655.0,0.0031702]
[1739858927003,1.76585976,95656.0,95655.0,0.0001702]
[1739858927204,1.76685976,95656.0,95655.0,0.0001702]
[1739858927646,0.02,95633.0,95629.0,7.869e-05]
[1739858927776,3.24436365,95632.0,95629.0,7.869e-05]
[1739858927971,3.273957,95631.0,95629.0,7.869e-05]
[1739858928172,0.10250365,95630.0,95629.0,7.869e-05]
[1739858928390,1.83996327,95630.0,95629.0,7.869e-05]
[1739858928591,1.07977927,95630.0,95629.0,7.869e-05]
[1739858929141,0.12058662,95630.0,95629.0,7.869e-05]
[1739858929349,0.00609962,95630.0,95629.0,7.869e-05]
[1739858930189,0.00609962,95630.0,95629.0,0.00307869]
[1739858930387,0.00609962,95630.0,95629.0,0.00807869]
[1739858930615,0.0138475,95630.0,95629.0,0.00807869]
[1739858931102,0.00774788,95630.0,95629.0,0.08475772]
[1739858931520,0.00774788,95630.0,95629.0,0.08371215]
[1739858932105,0.00774788,95642.0,95634.0,0.156847]
[1739858932299,0.00774788,95642.0,95629.0,0.08971215]
[1739858932520,0.00611812,95641.0,95630.0,0.156854]
[1739858932838,0.77472466,95640.0,95629.0,0.01960647]
[1739858932964,1.960811,95639.0,95629.0,0.02460647]
[1739858933159,1.9669844,95639.0,95629.0,0.02460647]
[1739858933361,1.539065,95638.0,95629.0,0.01960647]
[1739858933652,0.001,95630.0,95629.0,0.02560647]
[1739858933862,3.162752,95630.0,95629.0,0.02560647]
[1739858934060,2.12723832,95630.0,95629.0,7.869e-05]
[1739858934270,0.53258132,95630.0,95629.0,7.869e-05]
[1739858934489,0.45956532,95630.0,95629.0,7.869e-05]
[1739858934907,0.00608132,95630.0,95629.0,0.00207869]
[1739858935336,0.02,95633.0,95629.0,0.00165635]
[1739858935543,0.01380936,95630.0,95629.0,0.00165635]
[1739858935745,0.00774788,95630.0,95629.0,0.00465635]
[1739858935925,0.01380936,95630.0,95629.0,0.00465635]
[1739858936124,0.01380936,95630.0,95618.0,0.156874]
[1739858936329,0.00774788,95630.0,95629.0,0.005]
[1739858936493,0.00874788,95630.0,95629.0,0.011]
[1739858936695,0.01486799,95630.0,95629.0,0.011]
[1739858936952,0.01386799,95630.0,95629.0,0.005]
[1739858937356,0.01486799,95630.0,95629.0,0.005]
[1739858938530,0.01386799,95630.0,95629.0,0.005]
[1739858939560,0.01486799,95630.0,95629.0,0.011]
[1739858940430,0.00874788,95630.0,95629.0,0.011]
[1739858941205,0.00874788,95630.0,95629.0,0.03247379]
[1739858941384,0.00874788,95630.0,95629.0,0.03264394]
[1739858942260,0.00774788,95649.0,95648.0,0.156825]
[1739858942510,0.01383862,95649.0,95648.0,0.155825]
[1739858942709,0.01383862,95649.0,95642.0,0.209112]
[1739858942910,0.01383862,95649.0,95639.0,0.08363346]
[1739858942911,0.00774788,95649.0,95639.0,0.08363346]
[1739858943122,0.00774788,95649.0,95647.0,0.156826]
[1739858943355,0.00774788,95649.0,95648.0,0.002]
[1739858943743,0.0003406,95656.0,95654.0,0.156815]
[1739858943953,0.00045635,95656.0,95654.0,0.156813]
[1739858944156,0.00045635,95656.0,95639.0,0.08363346]
[1739858944157,0.00610145,95655.0,95652.0,0.156817]
[1739858944501,0.00610145,95655.0,95640.0,0.00104532]
[1739858944502,0.00610145,95655.0,95648.0,0.209098]
[1739858944702,0.00610145,95655.0,95653.0,0.156816]
[1739858944909,0.00045635,95656.0,95645.0,0.156829]
[1739858945148,0.484759,95655.0,95639.0,0.08363346]
[1739858945361,0.47127957,95655.0,95647.0,0.003]
[1739858945566,0.00610357,95655.0,95653.0,0.156815]
[1739858945784,0.00045635,95656.0,95646.0,0.02087028]
[1739858945999,0.00045635,95656.0,95647.0,0.21014732]
[1739858946213,0.00045635,95656.0,95655.0,0.156813]
[1739858946870,0.00045635,95656.0,95654.0,0.156814]
[1739858947075,0.00045635,95656.0,95653.0,0.001]
[1739858947276,0.280291,95655.0,95653.0,0.001]
[1739858948113,0.280451,95655.0,95653.0,0.001]
[1739858948320,1.681751,95654.0,95653.0,0.001]
[1739858948525,1.29578,95654.0,95653.0,0.001]
[1739858948729,1.29532692,95654.0,95639.0,0.08363346]
[1739858948940,0.0806,95648.0,95639.0,0.02073444]
[1739858949149,0.0806,95648.0,95616.0,0.209168]
[1739858949150,2.72216,95647.0,95626.0,0.209147]
[1739858949358,0.523457,95646.0,95633.0,0.02095021]
[1739858949563,1.445559,95647.0,95636.0,0.156844]
[1739858949768,0.574643,95646.0,95635.0,0.156845]
[1739858949967,0.943275,95647.0,95639.0,0.002]
[1739858950171,0.745694,95646.0,95639.0,0.002]
[1739858950374,0.434854,95645.0,95636.0,0.156844]
[1739858950578,0.807288,95647.0,95633.0,0.23008121]
[1739858950781,0.880515,95647.0,95636.0,0.004]
[1739858950992,0.0806,95648.0,95636.0,0.004]
[1739858951195,0.40044,95647.0,95636.0,0.004]
[1739858951793,0.0806,95648.0,95638.0,0.15684]
[1739858951954,0.0806,95648.0,95638.0,0.15788548]
[1739858952161,0.02,95650.0,95638.0,0.00104548]
[1739858952361,0.04565885,95663.0,95638.0,0.00104548]
[1739858952564,0.00612732,95649.0,95638.0,0.00011575]
[1739858952781,0.873453,95648.0,95639.0,0.005]
[1739858952993,0.00612732,95648.0,95639.0,0.005]
[1739858953170,0.10250365,95659.0,95640.0,0.00104546]
[1739858953373,0.04565885,95663.0,95638.0,0.00311575]
[1739858953374,0.281138,95658.0,95641.0,0.0010454]
[1739858953737,0.0061384,95658.0,95642.0,0.00104537]
[1739858953862,0.0061384,95658.0,95652.0,0.156817]
[1739858954059,0.0003406,95648.0,95646.0,0.00104536]
[1739858954378,0.0003406,95648.0,95646.0,0.15787136]
[1739858954775,0.0003406,95648.0,95646.0,0.156826]
[1739858954982,0.0003406,95648.0,95647.0,0.00104534]
[1739858956553,0.0003406,95648.0,95647.0,0.00404534]
[1739858956772,0.0003406,95648.0,95647.0,0.00904534]
[1739858957186,0.0003406,95648.0,95647.0,0.008]
[1739858958066,0.5273916,95648.0,95647.0,0.008]
[1739858958274,0.0003406,95648.0,95647.0,0.008]
[1739858958482,0.00644277,95648.0,95647.0,0.008]
[1739858958815,0.0003406,95648.0,95647.0,0.008]
[1739858958955,0.0003406,95648.0,95647.0,0.003]
[1739858959352,0.0003406,95648.0,95647.0,0.00404535]
[1739858959553,0.0003406,95648.0,95647.0,0.00704535]
[1739858959777,0.0003406,95648.0,95647.0,0.00404535]
[1739858959990,0.0003406,95648.0,95647.0,0.00804535]
[1739858960771,0.0003406,95648.0,95647.0,0.007]
[1739858961890,0.0003406,95648.0,95647.0,0.003]
[1739858962731,0.0003406,95648.0,95647.0,0.005]
[1739858963538,0.0003406,95648.0,95647.0,0.002]
[1739858964902,0.0003406,95648.0,95647.0,0.004]
[1739858965150,0.0003006,95648.0,95647.0,0.004]
[1739858965505,0.0003006,95648.0,95647.0,0.00404536]
[1739858965708,0.0003006,95648.0,95647.0,0.00504536]
[1739858966131,0.0003006,95648.0,95647.0,0.00821556]
[1739858966850,0.0003006,95648.0,95647.0,0.11071905]
[1739858967756,0.0003006,95648.0,95647.0,0.10671905]
[1739858968003,0.0003006,95648.0,95647.0,0.10371905]
[1739858968205,0.0003006,95648.0,95647.0,0.11071905]
[1739858968400,0.0003006,95648.0,95647.0,0.11771905]
[1739858970262,0.0003006,95648.0,95647.0,0.0152154]
[1739858970506,0.0003006,95648.0,95647.0,0.0141702]
[1739858970912,0.0003006,95648.0,95647.0,0.0071702]
[1739858971122,0.57226629,95648.0,95647.0,0.0001702]
[1739858971232,0.0003006,95648.0,95647.0,0.0071702]
[1739858971449,0.59838341,95648.0,95647.0,0.0141702]
[1739858971656,0.44859541,95648.0,95647.0,0.0071702]
[1739858971871,0.00650841,95648.0,95647.0,0.0001702]
[1739858972248,0.01429261,95648.0,95647.0,0.0121702]
[1739858972432,0.01429261,95648.0,95647.0,0.0071702]
[1739858972639,0.10381335,95660.0,95647.0,0.0001702]
[1739858972847,2.267441,95659.0,95647.0,0.0121702]
[1739858973049,2.27261196,95659.0,95647.0,0.0121702]
[1739858973268,1.41400596,95659.0,95647.0,0.0121702]
[1739858973414,0.761196,95658.0,95647.0,0.0121702]
[1739858973616,3.584694,95658.0,95647.0,0.0121702]
[1739858973844,0.0051186,95657.0,95647.0,0.0121702]
[1739858974191,2.4678286,95657.0,95647.0,0.0001702]
[1739858974392,2.260016,95656.0,95647.0,0.0021702]
[1739858974617,0.0051186,95657.0,95647.0,0.0031702]
[1739858974618,2.436158,95655.0,95647.0,0.0031702]
[1739858974825,2.847697,95654.0,95647.0,0.0001702]
[1739858974974,0.10250365,95653.0,95647.0,0.0001702]
[1739858975184,3.243011,95652.0,95647.0,0.0061702]
[1739858975379,3.102073,95652.0,95647.0,0.0041702]
[1739858975584,0.12920529,95651.0,95647.0,0.0001702]
[1739858975757,3.094565,95650.0,95647.0,0.0031702]
[1739858975961,0.10250365,95649.0,95647.0,0.0081702]
[1739858976168,4.138303,95648.0,95647.0,0.0081702]
[1739858976347,4.24080665,95648.0,95647.0,0.0081702]
[1739858976547,4.2459074,95648.0,95647.0,0.0081702]
[1739858976748,4.0421084,95648.0,95647.0,0.0081702]
[1739858976951,3.9890064,95648.0,95647.0,0.0081702]
[1739858977151,4.0397534,95648.0,95647.0,0.0001702]
[1739858977630,4.0397534,95648.0,95647.0,0.0101702]
[1739858977631,3.8902804,95648.0,95647.0,0.0101702]
[1739858977951,3.8902804,95648.0,95647.0,0.0001702]
[1739858978229,3.8912804,95648.0,95647.0,0.0001702]